bitfinex/quotes_ETHUSD_20250511
["timestamp","ask_amount","ask_price","bid_price","bid_amount"]
[1746924371127,0.16387399,2540.1,2539.7,0.8277]
[1746924371342,0.11466036,2540.1,2539.7,0.8277]
[1746924371642,3.98500846,2540.8,2539.7,0.8277]
[1746924371802,0.04920582,2540.8,2539.7,0.8277]
[1746924372437,0.04920237,2540.9,2539.9,0.8277]
[1746924372615,0.0492006,2541.1,2540.1,0.8277]
[1746924372818,0.0492006,2541.1,2540.2,14.21535693]
[1746924373038,3.98447951,2541.2,2540.3,0.8277]
[1746924373261,0.04919617,2541.2,2540.4,6.41237]
[1746924373428,0.04919233,2541.3,2540.4,6.41237]
[1746924373629,0.04919233,2541.3,2540.5,0.8277]
[1746924374221,3.98395583,2541.5,2540.5,0.8277]
[1746924374471,0.04918786,2541.6,2540.5,0.8277]
[1746924374647,0.04918786,2541.6,2540.6,0.75346172]
[1746924375226,3.98376156,2541.6,2540.7,0.79335183]
[1746924375854,0.04918786,2541.6,2540.7,0.79335183]
[1746924376057,3.98382423,2541.6,2540.7,0.754]
[1746924376268,0.04918786,2541.6,2540.8,0.03934949]
[1746924376466,3.93468424,2541.5,2540.7,0.754]
[1746924376667,0.55,2541.3,2540.7,0.754]
[1746924376870,3.9354763,2541.0,2540.8,4.816]
[1746924377175,0.15974652,2540.9,2540.8,4.816]
[1746924377467,4.09536175,2540.9,2540.8,4.816]
[1746924377761,0.55,2540.8,2540.4,4.816]
[1746924377972,0.04920529,2540.7,2540.4,4.816]
[1746924378258,0.15927797,2540.8,2540.4,4.816]
[1746924378461,3.98472798,2541.0,2540.4,6.7152]
[1746924378775,0.11054978,2540.9,2540.4,6.7152]
[1746924379071,0.15974997,2540.9,2540.4,4.816]
[1746924379228,0.11054978,2540.9,2540.4,4.816]
[1746924379428,0.11054978,2540.9,2540.6,0.754]
[1746924379625,0.04919612,2541.0,2540.6,0.754]
[1746924379831,3.93532323,2541.1,2540.6,0.754]
[1746924380041,0.04919729,2541.0,2540.6,1.311]
[1746924380341,0.04919729,2541.2,2540.6,1.311]
[1746924380542,0.11150384,2541.1,2540.6,1.3503569]
[1746924380760,0.04919613,2541.3,2540.6,1.3503569]
[1746924380761,0.04919416,2541.4,2540.6,1.311]
[1746924380955,3.93496922,2541.4,2540.7,0.97045333]
[1746924381156,0.11245775,2541.3,2540.7,0.9311]
[1746924381536,0.16164942,2541.3,2540.7,0.9311]
[1746924381748,3.9353082,2541.1,2540.8,4.816]
[1746924381947,0.11102683,2541.0,2540.8,4.816]
[1746924382245,0.04919715,2541.1,2540.8,4.816]
[1746924382450,0.04919716,2541.6,2540.8,4.816]
[1746924382650,3.93558753,2541.0,2540.8,4.816]
[1746924382866,3.6374864,2541.6,2540.8,4.816]
[1746924382867,0.11054978,2540.9,2540.8,4.816]
[1746924383063,3.93490021,2541.4,2540.8,5.373]
[1746924383257,0.04919277,2541.4,2540.8,5.373]
[1746924383437,0.11245775,2541.3,2540.8,5.373]
[1746924384091,0.55,2541.2,2540.6,0.754]
[1746924384270,3.93576555,2540.9,2540.5,4.815]
[1746924384471,0.87910384,2541.1,2540.5,4.815]
[1746924384472,0.11007269,2540.8,2540.5,4.815]
[1746924384786,3.93557347,2541.0,2540.5,4.815]
[1746924384997,0.11007269,2540.8,2540.6,0.03935849]
[1746924385277,0.11007269,2540.8,2540.3,8.7592]
[1746924385278,3.93585942,2540.8,2540.3,8.7592]
[1746924385572,3.93585942,2540.8,2540.4,4.815]
[1746924385573,0.11007269,2540.8,2540.4,4.815]
[1746924385773,0.11007269,2540.8,2540.5,0.03935803]
[1746924385976,0.55,2541.2,2540.3,2.29352]
[1746924386181,0.55,2541.0,2540.3,4.815]
[1746924386384,3.98490445,2540.9,2540.3,4.815]
[1746924386568,0.15975315,2540.9,2540.3,4.815]
[1746924386742,0.14676359,2540.9,2540.4,8.0]
[1746924386937,0.04920005,2541.2,2540.5,0.8268]
[1746924387176,4.04682339,2541.1,2540.6,0.88268]
[1746924387378,0.11150384,2541.1,2540.6,0.88268]
[1746924387753,3.93547764,2541.0,2540.5,0.8268]
[1746924387955,0.11054978,2540.9,2540.5,0.8268]
[1746924388948,3.93547409,2541.0,2540.5,0.8268]
[1746924389151,4.09483033,2540.9,2540.5,0.8268]
[1746924389452,0.55,2540.6,2540.3,8.0]
[1746924389659,0.04920488,2540.5,2540.3,4.815]
[1746924389852,0.04920801,2541.0,2540.3,6.79678]
[1746924390159,0.11001828,2540.9,2540.3,6.79678]
[1746924390361,0.11001828,2540.9,2540.3,4.815]
[1746924390560,3.93597475,2540.7,2540.3,4.815]
[1746924390762,3.93611533,2540.6,2540.3,4.815]
[1746924390971,0.04919965,2541.0,2540.3,4.815]
[1746924391172,0.29445862,2542.1,2540.3,4.815]
[1746924391173,7.0,2542.3,2540.6,0.55]
[1746924391355,0.7844,2541.8,2540.8,8.0]
[1746924391563,3.93502115,2541.3,2540.8,8.0]
[1746924391789,3.93514416,2541.3,2540.7,4.815]
[1746924391965,3.93525722,2541.2,2540.7,4.815]
[1746924392280,3.9353492,2541.1,2540.5,0.8268]
[1746924392487,3.93602803,2540.7,2540.2,4.815]
[1746924392785,3.93578519,2540.8,2540.2,4.815]
[1746924393187,0.55,2541.0,2540.2,4.815]
[1746924393370,3.93554932,2541.0,2540.2,6.0965]
[1746924393966,4.71971154,2541.1,2540.2,6.0965]
[1746924394301,4.76,2541.2,2540.3,8.8268]
[1746924394450,4.76,2541.2,2540.3,8.86615874]
[1746924394770,4.76,2541.2,2540.4,1.49626587]
[1746924394972,4.48479359,2541.5,2540.5,0.86305425]
[1746924395280,3.93448413,2541.7,2540.5,0.86305425]
[1746924395583,4.758,2541.9,2540.5,0.8237]
[1746924395769,4.758,2541.9,2540.6,0.23199659]
[1746924395971,0.55,2541.9,2540.7,0.03935072]
[1746924396166,3.93443643,2541.7,2540.8,0.8237]
[1746924396378,3.93431859,2541.8,2540.9,0.03935071]
[1746924396573,3.93425291,2541.8,2540.9,0.03934763]
[1746924396753,3.93425291,2541.8,2540.8,0.8237]
[1746924397082,3.93425548,2541.8,2540.9,0.03934764]
[1746924397268,4.753,2542.0,2541.1,8.8237]
[1746924397468,4.753,2542.0,2541.2,7.11267]
[1746924398056,4.753,2542.0,2541.3,8.0]
[1746924398258,5.5244,2542.4,2541.3,8.0]
[1746924398477,5.5244,2542.4,2541.4,0.03934195]
[1746924398478,0.7754,2542.4,2541.4,0.03934195]
[1746924398663,3.93348309,2542.3,2541.5,0.8237]
[1746924398859,4.70872055,2542.4,2541.5,0.8237]
[1746924399060,0.55,2542.3,2541.5,0.8237]
[1746924399276,3.93360081,2542.2,2541.2,5.6377]
[1746924399460,0.55,2542.3,2541.2,5.6377]
[1746924399659,3.93477072,2541.5,2541.2,5.6377]
[1746924399860,0.7754,2542.4,2541.2,8.41777]
[1746924400087,3.93408706,2541.9,2541.2,8.41777]
[1746924400286,3.9340717,2541.9,2541.2,8.41777]
[1746924400494,3.93406924,2541.9,2541.2,8.41777]
[1746924400684,3.93406924,2541.9,2541.2,3.60377]
[1746924400990,3.93406924,2541.9,2541.2,0.8237]
[1746924401364,4.48396292,2542.0,2541.2,0.8237]
[1746924401566,3.93410117,2541.9,2541.2,0.8237]
[1746924401867,3.93338673,2542.4,2541.2,0.8237]
[1746924402058,4.738,2542.4,2541.4,8.0]
[1746924402282,4.738,2542.4,2541.3,4.814]
[1746924402609,3.93429009,2541.8,2541.3,4.814]
[1746924402906,4.48400651,2542.0,2541.3,4.814]
[1746924403073,4.48391867,2542.0,2541.3,7.59397]
[1746924403276,0.55,2542.0,2541.3,7.59397]
[1746924404382,3.93360742,2542.2,2541.3,7.59397]
[1746924404592,3.93360742,2542.2,2541.4,0.03934316]
[1746924404811,3.93360742,2542.2,2541.4,2.30124448]
[1746924405383,0.55,2542.3,2541.4,2.30124448]
[1746924405601,4.48346716,2542.3,2541.4,2.30124448]
[1746924406116,4.738,2542.4,2541.4,10.30124448]
[1746924406264,3.93369699,2542.2,2541.5,0.7832]
[1746924406468,8.67132639,2542.4,2541.6,1.10844442]
[1746924406469,4.738,2542.4,2541.6,1.10844442]
[1746924406781,3.93298198,2542.6,2541.6,1.10844442]
[1746924406984,4.48320652,2542.5,2541.6,1.10844442]
[1746924407185,3.93303113,2542.6,2541.7,0.03933831]
[1746924407390,3.93298263,2542.6,2541.7,0.7832]
[1746924407700,5.3887,2542.8,2541.7,0.7832]
[1746924407867,4.48287322,2542.7,2541.7,0.7832]
[1746924408501,0.6667,2542.8,2541.6,1.10844442]
[1746924408781,0.6667,2542.8,2541.8,0.7832]
[1746924408985,0.6667,2542.8,2541.9,0.82252748]
[1746924409300,0.6667,2542.8,2542.0,0.82252561]
[1746924409606,0.6667,2542.8,2542.3,0.7832]
[1746924410105,0.6667,2542.8,2542.4,0.03932733]
[1746924410401,0.6667,2542.8,2542.5,14.9517]
[1746924411716,0.6667,2542.8,2542.6,8.0]
[1746924412013,0.6667,2542.8,2542.7,0.7937]
[1746924412512,3.9328273,2542.7,2542.5,14.158]
[1746924412665,3.93298198,2542.6,2542.5,14.158]
[1746924412862,3.93283929,2542.7,2542.5,14.158]
[1746924413213,0.6667,2542.8,2542.5,14.158]
[1746924415543,4.59945687,2542.8,2542.5,14.158]
[1746924415842,0.6667,2542.8,2542.5,14.158]
[1746924416053,3.93285511,2542.7,2542.5,14.158]
[1746924416352,3.93298198,2542.6,2542.5,14.158]
[1746924416653,4.48313667,2542.5,2542.4,4.724]
[1746924418083,0.8057,2542.6,2542.4,4.724]
[1746924418220,0.55,2542.5,2542.4,4.724]
[1746924418554,4.48313667,2542.5,2542.4,4.724]
[1746924418733,3.93377188,2542.1,2541.8,0.8158]
[1746924418935,3.93329137,2542.4,2541.6,1.10844442]
[1746924419231,3.93329137,2542.4,2541.9,4.724]
[1746924419418,0.55,2542.3,2541.9,4.724]
[1746924419618,3.9337627,2542.1,2541.9,4.724]
[1746924419845,4.48347634,2542.3,2541.9,4.724]
[1746924420059,3.93389097,2542.1,2541.9,4.724]
[1746924420539,3.9339103,2542.0,2541.9,4.724]
[1746924420746,3.93382525,2542.1,2541.9,4.724]
[1746924421116,0.8057,2542.6,2541.9,4.724]
[1746924421345,3.93317314,2542.5,2541.9,4.724]
[1746924421565,0.55,2542.3,2541.9,4.724]
[1746924421706,0.55,2542.5,2542.0,0.8073]
[1746924421905,3.9329469,2542.7,2542.0,0.8073]
[1746924422519,0.6667,2542.8,2542.0,0.8073]
[1746924422940,0.6667,2542.8,2541.5,8.0]
[1746924422941,3.93383979,2542.1,2541.7,0.8073]
[1746924423141,0.55,2542.6,2541.8,4.724]
[1746924423459,4.48301637,2542.6,2541.9,0.03934236]
[1746924423610,4.48301637,2542.6,2541.8,4.76334236]
[1746924423933,0.6667,2542.8,2541.9,8.0]
[1746924424136,0.6667,2542.8,2542.0,0.84663306]
[1746924424344,0.6667,2542.8,2542.2,0.8073]
[1746924424539,0.6667,2542.8,2542.3,0.84662724]
[1746924425769,0.005,2543.4,2542.3,0.8073]
[1746924425919,0.005,2543.4,2542.5,8.0]
[1746924426268,0.005,2543.4,2542.7,0.7737]
[1746924426628,0.005,2543.4,2542.7,0.81302261]
[1746924426818,3.93674854,2543.4,2542.7,0.7737]
[1746924427158,3.93674854,2543.4,2542.6,1.2724]
[1746924427159,0.005,2543.4,2542.6,4.724]
[1746924427356,3.93221548,2543.1,2542.6,4.724]
[1746924427734,0.55,2543.3,2542.6,4.724]
[1746924427962,0.55,2543.1,2542.6,4.724]
[1746924428168,4.48253556,2542.9,2542.4,4.724]
[1746924428352,0.55,2542.9,2542.4,4.724]
[1746924428556,4.48253591,2542.9,2542.4,4.724]
[1746924428727,0.55,2542.9,2542.4,4.724]
[1746924428926,0.55,2543.1,2542.4,4.724]
[1746924429127,4.48227722,2543.1,2542.4,4.724]
[1746924429422,0.55,2542.9,2542.4,4.724]
[1746924429851,4.4825266,2542.9,2542.4,4.724]
[1746924430053,0.55,2542.9,2542.4,4.724]
[1746924430253,0.005,2543.4,2542.5,0.7737]
[1746924430528,0.005,2543.4,2542.5,8.81302751]
[1746924431480,0.005,2543.4,2542.6,0.7737]
[1746924431784,0.005,2543.4,2542.9,0.7737]
[1746924433034,10.7823,2545.3,2543.3,1.3237]
[1746924433268,10.0,2545.3,2543.8,0.7737]
[1746924433459,10.0,2545.3,2544.7,0.7737]
[1746924433663,10.0,2545.3,2544.8,18.875]
[1746924433908,3.9285102,2545.5,2544.8,14.152]
[1746924434075,0.7823,2546.0,2544.8,14.152]
[1746924434076,0.7823,2546.0,2544.9,4.718]
[1746924434478,8.71080455,2546.0,2544.9,4.718]
[1746924434661,4.71080455,2546.0,2544.9,4.718]
[1746924434867,3.92862795,2545.5,2544.9,4.718]
[1746924435061,3.58828924,2546.1,2544.8,14.152]
[1746924435303,4.146,2546.7,2545.0,0.7537]
[1746924435304,0.41471808,2546.6,2545.0,0.7537]
[1746924435503,7.51566989,2546.3,2545.0,8.7537]
[1746924435709,5.65449544,2546.2,2545.0,13.4767]
[1746924436202,3.58828924,2546.1,2545.0,13.4767]
[1746924436497,8.56858551,2546.1,2545.0,8.7537]
[1746924436688,10.03515765,2546.1,2545.2,8.0]
[1746924436884,3.92745411,2546.2,2545.3,0.03928494]
[1746924437087,4.639,2547.0,2545.4,0.7537]
[1746924437261,8.56520595,2547.0,2545.6,0.7537]
[1746924437461,3.92634182,2546.9,2545.7,0.03926861]
[1746924437697,4.639,2547.0,2545.8,0.7537]
[1746924437999,0.636,2547.8,2546.1,0.7537]
[1746924438296,0.636,2547.8,2546.4,0.7537]
[1746924438503,3.58828924,2547.7,2546.4,0.7537]
[1746924438697,3.92601086,2547.2,2546.5,4.64]
[1746924438900,0.95003554,2547.7,2546.5,4.64]
[1746924439202,0.95003554,2547.7,2546.4,0.7537]
[1746924439504,3.92656382,2546.8,2546.4,0.7537]
[1746924439794,3.82669523,2546.7,2546.4,0.7537]
[1746924439999,3.92650596,2546.8,2546.4,0.7537]
[1746924440200,3.92682257,2546.6,2546.4,0.7537]
[1746924440372,3.92603352,2547.1,2546.2,18.786]
[1746924440580,3.92690325,2546.6,2546.2,18.786]
[1746924440775,3.92691882,2546.6,2546.2,18.786]
[1746924440979,3.92665017,2546.7,2545.6,5.4037]
[1746924441179,3.58828924,2546.2,2545.2,0.7657]
[1746924441507,3.92748557,2546.2,2545.2,0.29802045]
[1746924441669,8.0,2546.3,2544.8,5.4037]
[1746924441865,3.9282977,2545.7,2544.9,0.54037]
[1746924442067,3.92830507,2545.7,2544.9,0.54037]
[1746924442299,11.58828924,2546.1,2544.9,0.29272126]
[1746924442603,3.92805652,2545.8,2544.8,0.7657]
[1746924442808,3.92865948,2545.4,2544.8,0.7657]
[1746924442965,8.0,2545.9,2544.8,0.7657]
[1746924443170,8.0,2546.3,2544.8,1.30607]
[1746924443373,8.0,2546.0,2544.9,0.7657]
[1746924443691,8.0,2546.4,2544.9,0.7657]
[1746924444009,3.92788771,2545.9,2544.9,0.7657]
[1746924444206,3.92711278,2546.4,2544.9,0.7657]
[1746924444405,3.92838071,2545.6,2545.0,4.638]
[1746924444570,4.41708924,2546.1,2545.0,4.638]
[1746924444776,8.0,2545.8,2544.9,0.7657]
[1746924445000,3.92911869,2545.1,2544.9,0.7657]
[1746924445200,3.92927308,2545.0,2544.9,0.7657]
[1746924445389,3.92927308,2545.0,2544.7,4.638]
[1746924445708,3.92865561,2545.4,2544.7,4.638]
[1746924445907,0.55,2545.5,2544.7,4.638]
[1746924446112,3.92922294,2545.1,2544.7,4.638]
[1746924446285,3.92955497,2544.9,2544.7,4.638]
[1746924446610,3.92952633,2544.9,2544.7,4.638]
[1746924446793,8.0,2545.6,2544.7,4.638]
[1746924446998,8.0,2546.0,2544.7,5.22120295]
[1746924447198,1.40470694,2546.5,2544.8,0.8011]
[1746924447373,3.92695857,2546.5,2545.0,0.8011]
[1746924447578,10.0,2546.6,2545.2,0.8011]
[1746924447799,10.0,2546.6,2545.4,0.8011]
[1746924447999,4.611,2546.9,2545.7,0.8011]
[1746924448204,4.611,2546.9,2545.8,0.03926966]
[1746924448401,3.92694253,2546.6,2545.8,0.03926966]
[1746924448601,4.611,2546.9,2545.7,0.8011]
[1746924448804,3.92711373,2546.4,2545.9,4.637]
[1746924448993,3.92757704,2546.1,2545.9,4.637]
[1746924449193,3.92711686,2546.4,2545.9,4.637]
[1746924449628,3.92727386,2546.3,2545.9,4.637]
[1746924449775,3.9273768,2546.3,2545.9,4.637]
[1746924449979,0.55,2546.7,2545.9,4.637]
[1746924450199,3.92735475,2546.3,2545.9,4.637]
[1746924450518,4.47674788,2546.7,2545.9,4.637]
[1746924450676,3.92729302,2546.3,2545.9,4.637]
[1746924450879,3.92750931,2546.2,2545.9,4.637]
[1746924451281,0.55,2546.7,2545.9,4.637]
[1746924451480,3.92708013,2546.5,2545.9,4.637]
[1746924451699,0.55,2546.7,2545.9,4.637]
[1746924451903,3.92772977,2546.0,2545.9,4.637]
[1746924452303,0.55,2546.4,2545.9,4.637]
[1746924452509,3.92752823,2546.2,2545.9,4.637]
[1746924452711,4.40578924,2546.7,2545.9,4.637]
[1746924452894,3.92692029,2546.6,2545.9,5.18473798]
[1746924453096,3.92690098,2546.6,2545.9,5.18473798]
[1746924453292,3.92690098,2546.6,2546.0,0.03927404]
[1746924453498,3.92634182,2546.9,2545.9,5.18473798]
[1746924453693,3.92701159,2546.5,2545.9,5.18473798]
[1746924453899,12.596,2547.0,2546.0,0.5184738]
[1746924454080,3.92659582,2546.8,2546.1,0.03927141]
[1746924454285,3.92659582,2546.8,2546.2,0.7935]
[1746924454597,3.9268916,2546.6,2546.2,0.7935]
[1746924454799,3.926583,2546.8,2546.2,0.7935]
[1746924455117,3.92678893,2546.7,2546.2,0.7935]
[1746924455319,3.92682145,2546.6,2546.2,0.7935]
[1746924455480,0.55,2546.9,2546.2,0.7935]
[1746924455910,3.92658796,2546.8,2546.3,0.03927046]
[1746924456117,3.92589951,2547.2,2546.3,0.03927046]
[1746924456319,3.9266478,2546.8,2546.2,1.48153107]
[1746924456515,8.0,2547.5,2546.3,0.039268]
[1746924456717,3.92634447,2546.9,2546.3,0.039268]
[1746924457014,8.0,2547.5,2546.3,0.039268]
[1746924457015,3.92541707,2547.5,2546.3,0.039268]
[1746924457224,16.51341707,2547.5,2546.2,1.48153107]
[1746924457521,3.92635845,2546.9,2546.2,1.48153107]
[1746924457683,3.92572527,2547.3,2546.2,1.48153107]
[1746924458019,3.926786,2546.7,2546.2,1.48153107]
[1746924458228,0.55,2547.2,2546.2,1.48153107]
[1746924458431,0.55,2547.2,2546.3,0.03926832]
[1746924458624,3.92660238,2546.8,2546.2,1.48153107]
[1746924458819,0.55,2547.2,2546.3,0.03926832]
[1746924459026,3.92575081,2547.3,2546.3,0.03926832]
[1746924459334,4.583,2547.5,2546.4,0.7935]
[1746924459631,4.47495486,2547.8,2546.3,0.7935]
[1746924459843,3.926001,2547.2,2546.3,0.7935]
[1746924460133,0.55,2547.2,2546.3,0.7935]
[1746924460333,3.92664825,2546.8,2546.3,0.7935]
[1746924460549,3.92652916,2546.8,2546.3,0.83276793]
[1746924460751,3.92652892,2546.8,2546.3,0.83276793]
[1746924460933,3.92667168,2546.7,2546.3,0.7935]
[1746924461233,3.9265446,2546.8,2546.3,0.83276791]
[1746924461434,3.92622154,2547.0,2546.3,0.83276791]
[1746924461641,3.92634182,2546.9,2546.3,0.83276791]
[1746924461838,3.92659269,2546.8,2546.3,0.83276791]
[1746924462333,3.9264362,2546.9,2546.3,0.83276791]
[1746924462542,0.55,2547.2,2546.3,0.83276791]
[1746924462740,3.92642999,2546.9,2546.3,0.83276791]
[1746924462918,3.92625747,2547.0,2546.3,0.83276791]
[1746924463104,3.92635924,2546.9,2546.3,0.83276791]
[1746924463307,3.92624286,2547.0,2546.3,0.83276791]
[1746924463508,4.575,2547.3,2546.3,0.83276791]
[1746924463733,3.9263294,2547.0,2546.3,0.7935]
[1746924464282,3.92613055,2547.1,2546.4,0.94815311]
[1746924464840,3.92597111,2547.2,2546.4,0.94815311]
[1746924465056,4.575,2547.3,2546.4,0.94815311]
[1746924465260,3.92587939,2547.2,2546.5,0.03926253]
[1746924465414,9.25550979,2547.7,2546.6,0.7536]
[1746924465609,3.92549586,2547.5,2546.7,4.635]
[1746924465949,3.92602024,2547.2,2546.8,0.53886]
[1746924466259,8.0,2547.5,2546.6,0.7536]
[1746924466411,3.9262027,2547.0,2546.6,0.7536]
[1746924466605,3.92605374,2547.1,2546.6,0.7536]
[1746924466834,3.92557117,2547.4,2546.6,0.7536]
[1746924467339,11.92544897,2547.5,2546.6,1.29246]
[1746924467527,3.92569249,2547.4,2546.7,0.03926086]
[1746924467732,3.92583381,2547.3,2546.6,1.29246]
[1746924467937,3.92557117,2547.4,2546.6,1.29246]
[1746924468136,3.92512696,2547.7,2546.7,0.79286086]
[1746924468339,3.9253252,2547.6,2546.7,0.7536]
[1746924468625,3.92507402,2547.8,2546.7,0.7536]
[1746924468827,3.9251286,2547.7,2546.7,0.7536]
[1746924469147,3.9251286,2547.7,2546.9,0.7536]
[1746924469310,3.9251286,2547.7,2547.0,0.03925487]
[1746924469653,4.56,2548.0,2547.0,0.03925487]
[1746924469654,3.92502412,2547.8,2547.0,0.03925487]
[1746924469813,3.92512812,2547.7,2547.0,0.03925487]
[1746924470148,3.58828924,2548.5,2547.1,0.7536]
[1746924470461,3.92476466,2548.0,2547.2,4.60425]
[1746924470620,3.92476466,2548.0,2547.3,0.535785]
[1746924470837,3.92476466,2548.0,2547.4,0.03925014]
[1746924471079,0.55,2548.0,2547.2,4.565]
[1746924471225,0.55,2547.8,2547.2,4.565]
[1746924471429,3.92585642,2547.3,2547.1,0.7536]
[1746924471723,3.92563558,2547.4,2547.1,0.7536]
[1746924472028,3.92546467,2547.5,2547.1,0.7536]
[1746924472230,3.92548382,2547.5,2547.1,1.28546]
[1746924472430,3.92533073,2547.6,2547.1,1.28546]
[1746924473022,4.551,2547.9,2547.1,1.28546]
[1746924473279,3.92482928,2547.9,2547.1,9.28546]
[1746924473581,3.92489873,2547.9,2547.1,9.28546]
[1746924473756,3.92489873,2547.9,2547.2,1.385046]
[1746924473961,3.92459904,2548.1,2547.2,1.385046]
[1746924474168,3.92468731,2548.0,2547.2,1.385046]
[1746924474343,3.92487158,2547.9,2547.2,1.385046]
[1746924474539,3.92469321,2548.0,2547.3,0.03925535]
[1746924474803,3.92472537,2548.0,2547.3,1.07097614]
[1746924474957,4.547,2548.3,2547.3,1.07097614]
[1746924474958,3.92454743,2548.1,2547.4,0.8133]
[1746924475165,3.92482117,2547.9,2547.4,0.8133]
[1746924475366,8.47122675,2548.3,2547.4,0.8133]
[1746924475671,3.92466432,2548.0,2547.4,5.70523221]
[1746924475887,3.92476686,2548.0,2547.4,5.70523221]
[1746924476086,0.55,2548.2,2547.4,5.70523221]
[1746924476385,3.92419877,2548.3,2547.5,8.85255094]
[1746924476582,3.92477263,2548.0,2547.5,8.8133]
[1746924476783,0.55,2548.3,2547.5,0.8133]
[1746924476939,0.55,2548.3,2547.5,5.3773]
[1746924476940,3.92506483,2547.8,2547.5,5.3773]
[1746924477147,3.92512923,2547.7,2547.5,5.3773]
[1746924477541,0.55,2548.1,2547.5,5.3773]
[1746924477867,3.92509012,2547.8,2547.5,0.8133]
[1746924478070,3.92392287,2548.5,2547.5,1.03442083]
[1746924478282,0.55,2548.3,2547.5,0.8133]
[1746924478488,3.92418475,2548.3,2547.5,0.8133]
[1746924478687,3.92429744,2548.3,2547.5,0.8133]
[1746924478996,3.92429744,2548.3,2547.6,4.564]
[1746924479204,3.92413211,2548.4,2547.7,0.03924673]
[1746924479367,3.92423246,2548.3,2547.8,0.8133]
[1746924479567,3.92396402,2548.5,2547.9,0.03924334]
[1746924479775,0.11003317,2548.4,2548.0,0.8133]
[1746924479977,3.92380473,2548.6,2548.1,0.03923936]
[1746924480193,0.11050741,2548.5,2548.0,0.8133]
[1746924480692,3.92449275,2548.1,2548.0,0.8133]
[1746924480894,3.92433765,2548.3,2547.7,0.8133]
[1746924481082,3.92459033,2548.1,2547.7,0.8133]
[1746924481283,0.55,2548.1,2547.8,4.564]
[1746924481487,3.92495486,2547.8,2547.3,18.692]
[1746924481694,0.55,2547.9,2547.3,19.5053]
[1746924481901,3.92534471,2547.6,2547.3,19.5053]
[1746924482065,0.10999213,2547.9,2547.3,14.9413]
[1746924482264,0.55,2547.5,2546.3,0.8133]
[1746924482474,0.55,2546.9,2546.3,0.8133]
[1746924482669,3.92690291,2546.6,2546.3,0.8133]
[1746924482972,3.58828924,2547.2,2546.3,0.8133]
[1746924483171,1.3216,2547.1,2546.3,0.8133]
[1746924483374,3.92634182,2546.9,2546.3,0.8133]
[1746924483700,3.92624804,2547.0,2546.3,1.27602783]
[1746924483882,1.3216,2547.1,2546.3,1.27602783]
[1746924483883,3.92659192,2546.8,2546.3,0.8133]
[1746924484085,3.92711278,2546.4,2546.3,0.8133]
[1746924484389,0.7716,2547.4,2546.2,0.8133]
[1746924484580,0.76328384,2547.3,2546.4,0.8133]
[1746924484981,3.9273083,2546.3,2546.1,5.3777]
[1746924485191,0.55,2546.7,2546.1,0.8137]
[1746924485519,4.476712,2546.7,2546.1,0.8137]
[1746924485807,3.92694961,2546.6,2546.1,0.8137]
[1746924486014,3.92738584,2546.3,2545.9,4.564]
[1746924486167,8.44649761,2546.8,2545.9,4.564]
[1746924486168,8.44651798,2546.8,2545.9,5.8341]
[1746924486510,4.4766949,2546.7,2545.9,5.8341]
[1746924486706,0.55,2546.7,2545.9,5.8341]
[1746924486922,3.58828924,2546.3,2545.4,4.564]
[1746924487083,3.92825571,2545.7,2545.3,0.8137]
[1746924487293,3.92860014,2545.5,2545.3,0.8137]
[1746924487501,3.92819263,2545.7,2545.3,0.8137]
[1746924487826,4.516,2546.0,2545.3,1.30045549]
[1746924487966,0.8267,2546.5,2545.5,0.8137]
[1746924487967,3.92704729,2546.5,2545.5,0.8137]
[1746924488170,0.8267,2547.2,2545.5,0.8137]
[1746924488171,4.514,2546.9,2545.5,0.8137]
[1746924488376,3.9272934,2546.3,2545.5,0.8137]
[1746924488571,3.92680436,2546.6,2545.6,0.03927926]
[1746924488773,0.21269537,2546.8,2545.7,0.8137]
[1746924489075,3.92675067,2546.7,2545.8,0.03927232]
[1746924489276,4.72469537,2546.8,2545.9,4.565]
[1746924489475,4.72469537,2546.8,2546.0,0.03927233]
[1746924489712,3.9260954,2547.1,2546.1,0.8137]
[1746924489884,3.92594486,2547.2,2546.3,0.777]
[1746924490218,10.7827,2548.5,2546.6,0.777]
[1746924490510,3.92442991,2548.2,2546.9,0.777]
[1746924490698,0.11236392,2548.4,2547.1,0.777]
[1746924490902,3.92480723,2547.9,2547.1,0.777]
[1746924491108,3.92500682,2547.8,2547.1,0.777]
[1746924491414,3.58828924,2548.2,2547.1,0.777]
[1746924491717,0.11094095,2548.1,2547.3,0.777]
[1746924491921,0.55,2548.0,2547.3,0.777]
[1746924492101,3.92506752,2547.8,2547.3,0.777]
[1746924492413,3.9245277,2548.1,2547.3,0.777]
[1746924492614,0.11046656,2548.0,2547.4,0.03925197]
[1746924492818,3.92444614,2548.2,2547.5,4.565]
[1746924493118,3.92509004,2547.8,2547.5,4.565]
[1746924493418,4.03552688,2548.1,2547.5,4.565]
[1746924493719,0.017,2547.8,2547.5,4.565]
[1746924494296,3.92515692,2547.7,2547.3,0.777]
[1746924494612,3.92510892,2547.7,2547.3,5.342]
[1746924495184,0.017,2547.8,2547.3,5.342]
[1746924495418,3.92536102,2547.6,2547.3,5.342]
[1746924495918,0.017,2547.8,2547.4,0.03925829]
[1746924496095,0.017,2547.8,2547.3,5.0992]
[1746924496425,0.017,2547.8,2546.9,0.7951]
[1746924496583,0.55,2546.9,2546.2,0.7951]
[1746924496788,3.92712642,2546.4,2546.2,0.7951]
[1746924497026,3.92711278,2546.4,2545.8,0.7951]
[1746924497209,5.8374,2546.9,2545.9,0.56828478]
[1746924497423,5.8374,2546.9,2545.9,5.02401]
[1746924497721,5.8374,2546.9,2545.9,4.495]
[1746924497934,3.92739801,2546.3,2545.9,4.495]